bitfinex-derivatives/quotes_ETHF0:USTF0_20250426
["timestamp","ask_amount","ask_price","bid_price","bid_amount"]
[1745639858798,1.11163,1798.4,1798.3,3.2902]
[1745639864911,2.77543,1798.4,1798.3,3.2902]
[1745639865105,1.11177,1798.2,1798.0,4.31967]
[1745639865306,1.11177,1798.2,1798.1,3.3368]
[1745639866915,1.11171,1798.3,1798.1,3.3368]
[1745639867109,1.11171,1798.3,1798.2,1.683]
[1745639868316,1.11171,1798.3,1798.2,4.8908]
[1745639868516,1.11171,1798.3,1798.2,1.683]
[1745639869112,1.11171,1798.3,1798.2,6.991]
[1745639872032,1.11167,1798.4,1798.2,6.991]
[1745639872231,1.11167,1798.4,1798.3,1.7245]
[1745639874331,2.83157,1798.4,1798.3,1.7245]
[1745639877830,1.11167,1798.4,1798.3,1.7245]
[1745639882338,1.11163,1798.4,1798.3,1.7245]
[1745639883531,5.87,1798.8,1798.3,4.9323]
[1745639883732,1.11148,1798.7,1798.5,3.2078]
[1745639883936,2.4712,1798.8,1798.5,3.2078]
[1745639883937,1.1115,1798.6,1798.5,3.2078]
[1745639884244,1.1115,1798.6,1798.5,10.2514]
[1745639884432,1.1115,1798.6,1798.5,7.0436]
[1745639885138,1.1115,1798.6,1798.5,1.7356]
[1745639889137,1.11148,1798.7,1798.5,1.7356]
[1745639889340,1.11148,1798.7,1798.5,4.9434]
[1745639889639,4.80533,1798.9,1798.6,1.11149]
[1745639889840,1.11133,1798.9,1798.6,2.78419]
[1745639890145,1.11133,1798.9,1798.7,1.6139]
[1745639890335,1.11133,1798.9,1798.7,3.2866]
[1745639890540,1.11133,1798.9,1798.8,1.6727]
[1745639891445,2.73963,1798.9,1798.8,1.6727]
[1745639891643,3.53843,1798.9,1798.8,1.6727]
[1745639904253,1.11149,1798.7,1798.5,6.9018]
[1745639904560,1.11149,1798.7,1798.6,1.5854]
[1745639904959,1.11149,1798.7,1798.6,2.4087]
[1745639905563,3.63813,1798.8,1798.6,2.4087]
[1745639905763,3.63813,1798.8,1798.7,1.5854]
[1745639905955,2.84363,1798.8,1798.7,1.5854]
[1745639910062,1.11134,1798.9,1798.7,4.7932]
[1745639910364,1.11132,1798.9,1798.7,5.90463]
[1745639910554,1.11132,1798.9,1798.8,2.5001]
[1745639913565,1.11123,1799.1,1798.9,1.11132]
[1745639913762,1.11123,1799.1,1799.0,1.6768]
[1745639915564,3.53098,1799.2,1799.0,1.6768]
[1745639915766,1.93558,1799.2,1799.0,1.6768]
[1745639915967,1.93558,1799.2,1799.1,0.8537]
[1745639919872,3.65308,1799.2,1799.1,0.8537]
[1745639920570,1.1112,1799.1,1799.0,1.6768]
[1745639920769,2.8287,1799.1,1799.0,1.6768]
[1745639922775,1.1112,1799.1,1799.0,1.6768]
[1745639924575,1.11118,1799.2,1799.0,1.6768]
[1745639924777,1.1112,1799.1,1799.0,1.6768]
[1745639925281,1.1112,1799.1,1799.0,6.9848]
[1745639925875,1.1112,1799.1,1799.0,5.308]
[1745639926272,1.11126,1799.0,1798.9,3.2078]
[1745639926473,3.68966,1799.0,1798.9,3.2078]
[1745639926972,1.11132,1798.9,1798.8,1.7127]
[1745639928080,1.11132,1798.9,1798.8,7.0207]
[1745639941688,1.7222,1799.1,1798.8,7.0207]
[1745639941993,1.11127,1799.0,1798.9,5.7371]
[1745639942187,1.11125,1799.1,1798.9,5.7371]
[1745639942493,1.1112,1799.1,1799.0,2.5646]
[1745639945287,2.4271,1799.3,1799.0,2.5646]
[1745639945494,1.11116,1799.2,1799.1,2.3764]
[1745639946391,1.95272,1799.3,1799.1,2.3764]
[1745639946590,1.95272,1799.3,1799.2,1.7089]
[1745639948493,0.8416,1799.3,1799.2,1.7089]
[1745639948804,3.26212785,1799.4,1799.2,1.7089]
[1745639949198,1.712,1799.4,1799.3,0.8405]
[1745639949393,2.82301,1799.4,1799.3,0.8405]
[1745639949589,2.82301,1799.4,1799.3,2.5494]
[1745639951402,2.82301,1799.4,1799.3,1.7089]
[1745639952206,8.13101,1799.4,1799.3,1.7089]
[1745639953496,6.41901,1799.4,1799.3,1.7089]
[1745639954202,1.11101,1799.4,1799.3,1.7089]
[1745639954405,2.75521,1799.4,1799.3,1.7089]
[1745639956299,1.11101,1799.4,1799.3,1.7089]
[1745639957002,1.11101,1799.4,1799.3,3.3798]
[1745639957707,1.111,1799.5,1799.3,3.3798]
[1745639958009,1.111,1799.5,1799.4,1.7177]
[1745639960709,2.7126,1799.5,1799.4,1.7177]
[1745639965015,1.11126,1799.0,1798.9,1.6273]
[1745639965514,1.11132,1798.9,1798.8,0.8382]
[1745639965713,2.70412,1798.9,1798.8,0.8382]
[1745639965906,2.70412,1798.9,1798.8,2.4655]
[1745639968209,1.11132,1798.9,1798.8,2.4655]
[1745639974914,1.11138,1798.8,1798.7,3.9981]
[1745639975113,1.11138,1798.8,1798.7,4.8379]
[1745639975715,1.11138,1798.8,1798.7,1.6301]
[1745639976014,1.11138,1798.8,1798.7,4.8379]
[1745639976222,1.11138,1798.8,1798.7,11.8383]
[1745639977218,1.11138,1798.8,1798.7,6.5303]
[1745639983724,1.11138,1798.8,1798.7,3.3225]
[1745640001638,1.11138,1798.8,1798.7,1.6924]
[1745640001837,1.90328,1798.8,1798.7,1.6924]
[1745640002343,2.70778,1798.8,1798.7,1.6924]
[1745640003536,2.70778,1798.8,1798.5,1.7081]
[1745640003537,4.37488,1798.8,1798.5,1.7081]
[1745640003726,1.1115,1798.6,1798.5,1.7081]
[1745640003930,1.1115,1798.6,1798.5,3.3291]
[1745640007933,1.11146,1798.7,1798.5,3.3291]
[1745640008131,1.11146,1798.7,1798.6,4.853]
[1745640008332,1.1114,1798.8,1798.6,4.853]
[1745640008539,1.1114,1798.8,1798.7,2.4719]
[1745640012537,1.11138,1798.8,1798.7,2.4719]
[1745640013341,1.6017,1799.0,1798.7,2.4719]
[1745640013642,1.11132,1798.9,1798.8,1.7052]
[1745640014136,1.11132,1798.9,1798.7,0.8267]
[1745640014137,1.11138,1798.8,1798.7,0.8267]
[1745640014534,1.11138,1798.8,1798.7,2.5557]
[1745640014733,2.73958,1798.8,1798.7,2.5557]
[1745640016338,1.11138,1798.8,1798.7,2.5557]
[1745640016537,1.11138,1798.8,1798.7,5.7635]
[1745640018043,1.11138,1798.8,1798.7,2.5557]
[1745640018741,1.92008,1798.8,1798.7,2.5557]
[1745640020946,1.11163,1798.4,1798.3,3.2078]
[1745640021138,1.11163,1798.4,1798.3,4.0402]
[1745640021340,1.11163,1798.4,1798.3,5.6872]
[1745640032656,1.11163,1798.4,1798.3,2.4794]
[1745640036259,2.82553,1798.4,1798.3,2.4794]
[1745640039756,2.82553,1798.4,1798.3,1.647]
[1745640045758,1.11163,1798.4,1798.3,1.647]
[1745640050763,2.4171,1798.8,1798.4,1.1116]
[1745640050966,1.11144,1798.7,1798.6,3.2078]
[1745640051159,1.11144,1798.7,1798.6,4.8461]
[1745640051562,1.11144,1798.7,1798.6,5.7167]
[1745640053261,1.11144,1798.7,1798.6,3.2078]
[1745640053762,1.1115,1798.6,1798.5,5.308]
[1745640053962,1.1115,1798.6,1798.5,6.1357]
[1745640054162,1.1115,1798.6,1798.5,1.6698]
[1745640057374,1.11149,1798.7,1798.5,1.6698]
[1745640058371,3.65581,1798.8,1798.6,3.2078]
[1745640059367,2.86261,1798.8,1798.6,3.2078]
[1745640059673,1.96964,1798.9,1798.6,4.31927]
[1745640061873,1.11139,1798.8,1798.6,3.2078]
[1745640062068,0.8583,1798.9,1798.6,3.2078]
[1745640062275,1.11144,1798.7,1798.6,3.2078]
[1745640062676,1.11143,1798.8,1798.6,3.2078]
[1745640063075,2.5899,1798.9,1798.5,5.3518]
[1745640063274,1.1115,1798.6,1798.5,3.682]
[1745640063464,1.11157,1798.5,1798.4,3.2078]
[1745640063670,1.11169,1798.3,1798.2,6.8898]
[1745640065478,2.81327,1798.4,1798.2,6.8898]
[1745640065677,1.11156,1798.6,1798.2,8.00151]
[1745640065879,1.11163,1798.4,1798.3,0.8296]
[1745640066285,2.72771,1798.5,1798.3,0.8296]
[1745640066690,2.72771,1798.5,1798.4,0.828]
[1745640067988,1.11163,1798.4,1798.3,0.8296]
[1745640068188,1.11163,1798.4,1798.3,1.6324]
[1745640068787,1.98543,1798.4,1798.3,0.8028]
[1745640068988,2.78093,1798.4,1798.3,0.8028]
[1745640069485,1.11169,1798.3,1798.2,6.8898]
[1745640069688,2.74459,1798.3,1798.2,6.8898]
[1745640070893,2.74459,1798.3,1798.2,8.584]
[1745640074592,1.11181,1798.1,1798.0,4.0106]
[1745640074992,1.11181,1798.1,1798.0,5.5916]
[1745640075192,1.94961,1798.1,1798.0,5.5916]
[1745640075385,1.94961,1798.1,1798.0,4.7888]
[1745640075586,1.11187,1798.0,1797.9,3.68]
[1745640075894,1.11194,1797.9,1797.8,4.0082]
[1745640076093,1.11194,1797.9,1797.8,5.5892]
[1745640076390,1.11194,1797.9,1797.8,3.2078]
[1745640077984,1.11194,1797.9,1797.7,1.581]
[1745640077985,1.112,1797.8,1797.7,1.581]
[1745640078190,2.744,1797.8,1797.7,1.581]
[1745640078391,1.11206,1797.7,1797.6,4.5398]
[1745640078593,2.78186,1797.7,1797.6,6.2404]
[1745640078794,1.11212,1797.6,1797.5,3.2078]
[1745640078996,2.78192,1797.6,1797.5,3.2078]
[1745640086190,1.1124,1797.2,1797.1,6.8888]
[1745640086394,1.1124,1797.2,1797.1,4.0506]
[1745640086793,1.1124,1797.2,1797.1,6.4765]
[1745640088096,1.1124,1797.2,1797.1,3.2687]
[1745640095300,4.045,1797.5,1797.1,3.2687]
[1745640095499,3.2078,1797.5,1797.2,1.6273]
[1745640095801,1.11231,1797.3,1797.2,1.6273]
[1745640096904,4.32011,1797.3,1797.2,1.6273]
[1745640097091,2.72861,1797.3,1797.2,1.6273]
[1745640097295,5.93641,1797.3,1797.2,1.6273]
[1745640098303,2.72861,1797.3,1797.2,1.6273]
[1745640098505,5.93641,1797.3,1797.2,1.6273]
[1745640099902,1.11231,1797.3,1797.2,1.6273]
[1745640100102,1.11231,1797.3,1797.2,6.9353]
[1745640101207,3.2078,1798.4,1797.2,14.7162]
[1745640101507,4.0265,1798.4,1797.8,3.2078]
[1745640101704,1.11184,1798.1,1797.9,3.43]
[1745640101905,1.11184,1798.1,1798.0,1.7104]
[1745640102100,1.54753685,1798.1,1798.0,1.7104]
[1745640102499,1.11184,1798.1,1798.0,1.7104]
[1745640103209,2.70344,1798.1,1798.0,1.7104]
[1745640104211,1.11184,1798.1,1798.0,1.7104]
[1745640105306,1.56542851,1798.1,1798.0,1.7104]
[1745640106817,1.11172,1798.3,1798.0,1.7104]
[1745640107110,4.0551,1798.4,1798.0,2.82226]
[1745640107519,4.0551,1798.4,1798.1,1.6636]
[1745640107520,1.11174,1798.3,1798.1,1.6636]
[1745640107711,3.2078,1798.4,1798.1,2.77537]
[1745640108016,1.11165,1798.4,1798.2,0.8162]
[1745640108320,1.11153,1798.6,1798.3,3.64234]
[1745640108510,10.2015,1798.9,1798.4,1.6998]
[1745640108719,4.31914,1798.9,1798.4,1.6998]
[1745640108910,1.11134,1798.9,1798.6,1.11147]
[1745640109115,1.11134,1798.9,1798.7,3.3921]
[1745640109315,1.11134,1798.9,1798.8,1.6998]
[1745640110720,2.7168,1799.0,1798.8,1.6998]
[1745640111113,1.11132,1798.9,1798.8,1.6998]
[1745640111518,2.7168,1799.0,1798.8,1.6998]
[1745640112723,1.11132,1798.9,1798.8,1.6998]
[1745640112922,2.74522,1798.9,1798.8,1.6998]
[1745640113520,2.74524,1798.9,1798.7,2.80373]
[1745640113723,1.6339,1798.9,1798.7,3.39]
[1745640113919,2.74527,1798.9,1798.7,3.39]
[1745640114319,1.6156,1798.8,1798.7,3.39]
[1745640114523,2.72698,1798.8,1798.7,3.39]
[1745640114823,1.6156,1798.8,1798.7,3.39]
[1745640115024,2.72698,1798.8,1798.7,2.5139]
[1745640117118,1.11144,1798.7,1798.6,3.678]
[1745640117311,2.71114,1798.7,1798.6,3.678]
[1745640118124,1.5997,1798.7,1798.6,5.4116]
[1745640118421,1.11142,1798.8,1798.6,5.4116]
[1745640118616,3.51076,1798.9,1798.7,1.7336]
[1745640119719,1.11138,1798.8,1798.7,1.7336]
[1745640120523,2.84168,1798.8,1798.7,1.7336]
[1745640128634,1.11144,1798.7,1798.6,3.678]
[1745640128833,1.1115,1798.6,1798.5,1.7141]
[1745640129033,1.11163,1798.4,1798.3,3.676]
[1745640129330,1.11163,1798.4,1798.3,6.1951]
[1745640129832,2.5289,1798.5,1798.3,6.1951]
[1745640129833,3.6405,1798.5,1798.3,6.1951]
[1745640130037,1.11155,1798.6,1798.3,6.1951]
[1745640130228,1.11157,1798.5,1798.4,2.5235]
[1745640131133,1.11157,1798.5,1798.4,7.8315]
[1745640132237,1.11157,1798.5,1798.4,2.5235]
[1745640132533,1.11157,1798.5,1798.4,1.7141]
[1745640132933,2.81607,1798.5,1798.4,1.7141]
[1745640133935,12.69126,1798.5,1797.8,3.2078]
[1745640134133,1.11187,1798.0,1797.9,0.8401]
[1745640134327,5.98734,1798.1,1797.7,4.5334]
[1745640134533,1.112,1797.8,1797.7,3.676]
[1745640134733,1.112,1797.8,1797.5,0.8192]
[1745640134734,1.11212,1797.6,1797.5,0.8192]
[1745640135139,1.11212,1797.6,1797.5,6.1272]
[1745640135540,1.11209,1797.7,1797.5,6.1272]
[1745640135739,1.11212,1797.6,1797.5,6.1272]
[1745640136133,1.1121,1797.7,1797.5,6.1272]
[1745640136442,1.11212,1797.6,1797.5,6.1272]
[1745640137633,1.11212,1797.6,1797.5,7.811]
[1745640137829,1.11212,1797.6,1797.5,8.6704]
[1745640139341,1.11212,1797.6,1797.5,7.811]
[1745640141143,1.11212,1797.6,1797.5,2.503]
[1745640141641,2.775,1797.7,1797.5,2.503]
[1745640141842,2.775,1797.7,1797.6,1.75]
[1745640142045,0.0146,1797.7,1797.6,1.75]
[1745640144139,0.0146,1797.7,1797.6,6.06992]
[1745640144644,4.78871,1798.3,1798.1,1.11178]
[1745640144944,1.6061,1798.4,1798.2,1.7318]
[1745640145144,1.11169,1798.3,1798.2,1.7318]
[1745640145543,2.71777,1798.4,1798.2,1.7318]
[1745640145745,4.8139,1798.4,1798.1,1.7377]
[1745640145937,1.11175,1798.2,1798.1,0.8674]
[1745640146138,1.6061,1798.3,1798.0,3.2078]
[1745640146139,1.11181,1798.1,1798.0,3.2078]
[1745640147946,1.11181,1798.1,1798.0,4.8944]
[1745640148539,2.4583,1798.3,1798.0,4.8944]
[1745640148740,1.11181,1798.1,1798.0,4.8944]
[1745640149547,2.70688,1798.2,1798.0,4.8944]
[1745640149842,1.5951,1798.2,1798.1,1.6866]
[1745640150045,2.70685,1798.2,1798.1,1.6866]
[1745640152245,1.11187,1798.0,1797.9,1.6906]
[1745640152449,1.11187,1798.0,1797.8,3.677]
[1745640152643,1.11187,1798.0,1797.8,5.289]
[1745640152842,1.6415,1798.0,1797.8,5.289]
[1745640153043,2.75341,1798.0,1797.9,1.612]
[1745640153351,2.75341,1798.0,1797.9,2.4806]
[1745640155649,2.75341,1798.0,1797.9,5.6884]
[1745640156150,1.11194,1797.9,1797.8,3.677]
[1745640156348,2.86474,1797.9,1797.8,3.677]
[1745640156852,2.86474,1797.9,1797.8,5.3544]
[1745640157652,2.86474,1797.9,1797.8,3.677]
[1745640157852,1.112,1797.8,1797.7,0.8429]
[1745640158157,2.8648,1797.8,1797.7,0.8429]
[1745640158449,2.8648,1797.8,1797.6,4.0168]
[1745640158450,1.11206,1797.7,1797.6,1.6774]
[1745640158649,1.7528,1797.7,1797.6,1.6774]
[1745640158850,2.86486,1797.7,1797.6,1.6774]
[1745640161251,1.11212,1797.6,1797.5,4.5491]
[1745640161457,2.79202,1797.6,1797.5,4.5491]
[1745640161955,2.79202,1797.6,1797.5,6.2945]
[1745640162455,1.93309,1797.7,1797.5,6.2945]
[1745640162645,1.93309,1797.7,1797.6,1.6541]
[1745640162646,3.56879,1797.7,1797.6,1.6541]
[1745640163045,2.74779,1797.7,1797.6,1.6541]
[1745640168559,1.11209,1797.7,1797.6,1.6541]
[1745640170253,2.4149,1797.9,1797.6,1.6541]
[1745640170459,1.11187,1798.0,1797.7,1.11203]
[1745640170759,1.6023,1798.1,1797.8,3.3879]
[1745640170960,1.11187,1798.0,1797.9,1.7233]
[1745640177157,1.6023,1798.1,1797.9,1.7233]
[1745640177352,2.71416,1798.1,1797.9,1.7233]
[1745640177555,2.71413,1798.1,1797.9,1.7233]
[1745640177755,1.11187,1798.0,1797.9,1.7233]
[1745640177956,2.86377,1798.0,1797.9,1.7233]
[1745640191068,1.7519,1798.0,1797.9,1.7233]
[1745640192159,3.2078,1798.2,1797.9,2.8352]
[1745640192365,2.73812,1798.1,1797.9,1.7233]
[1745640193473,2.73812,1798.1,1797.9,2.83523]
[1745640193972,2.73812,1798.1,1797.9,1.7233]
[1745640194274,1.11187,1798.0,1797.9,1.7233]
[1745640194667,1.6263,1798.1,1797.9,1.7233]
[1745640195470,1.11187,1798.0,1797.9,1.7233]
[1745640198474,2.73816,1798.1,1797.9,1.7233]
[1745640198871,3.2078,1798.2,1798.0,1.11187]
[1745640198872,1.11178,1798.2,1798.0,1.11187]
[1745640199076,3.3757,1798.3,1797.9,6.043]
[1745640199277,1.1118,1798.2,1798.0,1.6057]
[1745640199480,2.8367,1798.2,1798.0,1.6057]
[1745640199670,2.8367,1798.2,1798.1,0.7938]
[1745640202477,2.8367,1798.2,1798.1,2.5251]
[1745640204772,1.7249,1798.2,1798.1,2.5251]
[1745640204976,3.2078,1798.4,1798.3,1.11169]
[1745640205383,3.2078,1798.4,1798.2,3.60631]
[1745640205577,3.2078,1798.4,1798.3,1.6835]
[1745640205977,4.31943,1798.4,1798.3,1.6835]
[1745640206378,5.90883,1798.4,1798.3,1.6835]
[1745640206584,1.11169,1798.3,1798.2,0.8111]
[1745640206785,2.70109,1798.3,1798.2,2.4946]
[1745640210394,1.11175,1798.2,1798.1,3.674]
[1745640210596,1.11187,1798.0,1797.9,3.2078]
[1745640211589,2.83327,1798.0,1797.9,3.2078]
[1745640212787,2.83327,1798.0,1797.9,1.6869]
[1745640217193,1.11187,1798.0,1797.9,1.6869]
[1745640220001,1.11182,1798.1,1797.9,2.79884]
[1745640220199,1.11182,1798.1,1798.0,2.5591]
[1745640221195,2.86472,1798.1,1798.0,2.5591]
[1745640221600,1.7529,1798.1,1798.0,2.5591]
[1745640222595,2.86471,1798.1,1798.0,2.5591]
[1745640225601,1.7529,1798.1,1798.0,2.5591]
[1745640225802,1.7529,1798.1,1798.0,3.3667]
[1745640229604,2.86471,1798.1,1798.0,3.3667]
[1745640230699,2.86471,1798.1,1798.0,2.5591]
[1745640230905,1.11194,1797.9,1797.8,4.4873]
[1745640231106,2.81332,1798.0,1797.8,12.3166]
[1745640231405,2.81332,1798.0,1797.9,1.7028]
[1745640234407,1.11194,1797.9,1797.8,5.3058]
[1745640234604,2.78,1797.8,1797.4,1.6629]
[1745640234810,1.11225,1797.4,1797.3,3.673]
[1745640235310,1.11225,1797.4,1797.3,5.308]
[1745640235812,3.61525,1797.4,1797.3,5.308]
[1745640236205,1.11232,1797.3,1797.1,4.9378]
[1745640236410,2.78932,1797.3,1797.1,5.8015]
[1745640237512,2.78932,1797.3,1797.2,1.73]
[1745640237811,1.677,1797.3,1797.2,1.73]
[1745640238012,1.11221,1797.5,1797.2,2.84234]
[1745640238213,1.11221,1797.5,1797.3,0.818]
[1745640238411,1.11221,1797.5,1797.3,2.548]
[1745640238813,1.11221,1797.5,1797.4,1.6943]
[1745640240219,2.5245,1797.6,1797.4,1.6943]
[1745640240418,0.8002,1797.7,1797.5,0.8266]
[1745640240419,1.11212,1797.7,1797.5,0.8266]
[1745640240620,1.11212,1797.7,1797.6,2.5123]
[1745640240917,2.69612,1797.7,1797.6,2.5123]
[1745640241618,5.19322,1797.8,1797.6,2.5123]
[1745640241809,5.19322,1797.8,1797.7,1.7133]
[1745640242421,6.83222,1797.8,1797.7,1.7133]
[1745640243315,1.11206,1797.7,1797.6,0.818]
[1745640243517,1.11212,1797.6,1797.5,0.8266]
[1745640243711,1.11212,1797.6,1797.5,3.3811]
[1745640247020,2.75111,1797.7,1797.5,4.49328]
[1745640247423,5.19322,1797.8,1797.6,2.86052]
[1745640247722,5.19322,1797.8,1797.7,1.7484]
[1745640248929,3.61372,1797.8,1797.7,1.7484]
[1745640249123,1.11209,1797.7,1797.5,1.6678]
[1745640249323,2.74039,1797.7,1797.5,2.77998]
[1745640249828,2.74039,1797.7,1797.5,2.77997]
[1745640251522,1.6283,1797.7,1797.4,1.603]
[1745640251724,2.5571,1797.6,1797.4,1.603]
[1745640251919,1.7455,1797.5,1797.4,2.71522]
[1745640252419,1.9237,1797.7,1797.5,1.11218]
[1745640252620,4.0812,1797.8,1797.5,1.6166]
[1745640252825,3.2078,1797.8,1797.7,1.11206]
[1745640253130,3.2078,1797.8,1797.6,1.94658]
[1745640253422,3.2078,1797.8,1797.7,3.58976]
[1745640253623,4.9533,1797.8,1797.7,3.58976]
[1745640253833,4.9533,1797.8,1797.7,2.4777]
[1745640254213,9.9533,1797.8,1797.2,3.671]
[1745640254523,1.11221,1797.5,1797.3,3.64361]
[1745640254720,1.11225,1797.4,1797.3,2.5313]
[1745640255120,1.11231,1797.3,1797.2,3.671]
[1745640255314,1.11231,1797.3,1797.2,4.5307]
[1745640255315,1.738,1797.3,1797.2,4.5307]
[1745640255727,1.738,1797.3,1797.2,6.2023]
[1745640256027,1.11228,1797.4,1797.2,7.31467]
[1745640256929,1.11228,1797.4,1797.3,1.609]
[1745640257330,2.85023,1797.5,1797.3,1.609]
[1745640258321,2.85023,1797.5,1797.3,2.4554]
[1745640259032,1.11225,1797.4,1797.3,2.4554]
[1745640259331,2.72105,1797.4,1797.3,2.4554]
[1745640259532,3.59205,1797.4,1797.3,2.4554]
[1745640263228,2.4798,1797.4,1797.3,2.4554]
[1745640263433,1.11221,1797.5,1797.3,2.4554]
[1745640263636,1.11221,1797.5,1797.4,1.7509]
[1745640264535,2.78951,1797.5,1797.4,1.7509]
[1745640264737,2.78951,1797.5,1797.3,0.8464]
[1745640264738,1.6773,1797.5,1797.2,4.5307]
[1745640264930,1.11231,1797.3,1797.2,6.2816]
[1745640265327,2.78961,1797.3,1797.2,6.2816]
[1745640266229,3.62271,1797.3,1797.2,3.671]
[1745640267746,7.5104,1797.3,1796.9,0.7941]
[1745640268034,1.11262,1796.8,1796.7,6.2456]
[1745640268436,1.11274,1796.6,1796.5,3.2078]
[1745640268636,1.11274,1796.6,1796.5,3.672]
[1745640269138,2.72084,1796.6,1796.5,8.98]
[1745640269338,2.72084,1796.6,1796.5,5.308]
[1745640269542,3.52414,1796.6,1796.5,5.308]
[1745640270239,1.11287,1796.4,1796.3,4.8354]
[1745640271342,2.72095,1796.5,1796.3,10.1434]
[1745640271641,2.72095,1796.5,1796.4,1.6276]
[1745640276042,1.11277,1796.6,1796.4,1.6276]
[1745640276242,1.11277,1796.6,1796.4,6.9356]
[1745640276436,1.11277,1796.6,1796.5,0.8481]
[1745640276632,1.11277,1796.6,1796.5,2.4415]
[1745640276837,2.82627,1796.6,1796.5,1.5934]
[1745640280849,1.11287,1796.4,1796.3,4.8818]
[1745640281146,1.11287,1796.4,1796.3,11.802]
[1745640281344,1.11287,1796.4,1796.3,8.5942]
[1745640285842,2.73395,1796.5,1796.3,8.5942]
[1745640286043,2.73395,1796.5,1796.4,1.6482]
[1745640287144,1.6211,1796.5,1796.2,3.672]
[1745640287340,2.70261,1796.4,1796.2,6.086]
[1745640287546,2.70261,1796.4,1796.3,1.5875]
[1745640288244,2.70261,1796.4,1796.3,6.8955]
[1745640289951,1.5897,1796.4,1796.3,6.8955]
[1745640290555,2.70257,1796.4,1796.3,6.8955]
[1745640291143,1.11285,1796.5,1796.3,6.8955]
[1745640291363,2.84185,1796.5,1796.4,1.6135]
[1745640293648,4.32059,1796.6,1796.4,2.72637]
[1745640293857,0.817,1796.7,1796.4,2.72637]
[1745640293858,1.11268,1796.7,1796.5,1.95377]
[1745640294055,1.11268,1796.7,1796.5,4.35477]
[1745640294355,1.11268,1796.7,1796.6,1.5921]
[1745640297155,5.6558,1796.9,1796.6,1.5921]
[1745640298048,1.11265,1796.8,1796.6,1.5921]
[1745640298654,1.11268,1796.7,1796.6,1.5921]
[1745640299657,1.11267,1796.8,1796.6,1.5921]
[1745640299858,1.11268,1796.7,1796.6,1.5921]
[1745640300454,2.7591,1796.9,1796.6,2.70484]
[1745640300760,1.11268,1796.7,1796.6,1.5921]
[1745640300955,1.11268,1796.7,1796.5,11.74267]
[1745640301257,1.11266,1796.8,1796.6,1.11273]
[1745640301853,2.75911,1796.9,1796.6,1.11273]
[1745640302059,1.11261,1796.9,1796.6,4.32053]
[1745640302262,1.11261,1796.9,1796.7,1.11267]
[1745640302557,1.11261,1796.9,1796.8,0.81]
[1745640302758,1.11261,1796.9,1796.8,1.662]
[1745640303161,1.11261,1796.9,1796.8,6.97]
[1745640303863,1.11253,1797.0,1796.8,8.0826]
[1745640304568,1.11248,1797.1,1796.9,1.11254]
[1745640306059,1.11248,1797.1,1796.9,6.42054]
[1745640308563,1.11248,1797.1,1796.9,5.308]
[1745640309166,1.11248,1797.1,1796.8,6.44658]
[1745640309353,1.1125,1797.0,1796.8,6.44658]
[1745640309665,2.81308,1797.1,1796.8,6.44658]
[1745640310173,2.81308,1797.1,1796.9,1.11255]
[1745640310560,1.11248,1797.1,1796.9,1.11255]
[1745640310761,4.32019,1797.2,1797.0,1.11249]
[1745640311060,4.32019,1797.2,1797.1,1.6567]
[1745640311260,4.32019,1797.2,1797.1,3.3967]
[1745640312966,4.04683356,1797.3,1797.1,4.50913]
[1745640313157,4.04683356,1797.3,1797.2,1.6455]
[1745640313360,3.60844,1797.3,1797.2,1.6455]
[1745640315361,3.60844,1797.3,1797.1,1.6567]
[1745640315362,1.11237,1797.2,1797.1,1.6567]
[1745640315562,2.72947,1797.2,1797.1,1.6567]
[1745640318469,2.72947,1797.2,1797.1,3.3546]
[1745640322567,3.2078,1797.4,1797.1,3.3546]
[1745640322771,9.239,1798.1,1797.3,3.2078]
[1745640322772,2.532,1797.6,1797.3,3.2078]
[1745640322968,1.11208,1797.7,1797.5,1.11217]
[1745640323167,1.7034,1797.8,1797.6,1.7455]
[1745640323468,2.8154,1797.8,1797.7,0.8653]
[1745640323863,1.7034,1797.8,1797.7,0.8653]
[1745640324074,0.8286,1798.0,1797.7,1.97736]
[1745640324278,1.11191,1798.0,1797.8,2.5157]
[1745640324469,1.11191,1798.0,1797.9,1.6482]
[1745640324871,1.11187,1798.0,1797.9,1.6482]
[1745640325177,1.11187,1798.0,1797.9,6.9562]
[1745640325770,1.11185,1798.1,1797.9,6.9562]
[1745640325966,1.11185,1798.1,1798.0,2.5135]
[1745640326370,2.80335,1798.1,1798.0,2.5135]
[1745640327178,1.6915,1798.1,1798.0,2.5135]
[1745640327478,2.80331,1798.1,1798.0,2.5135]
[1745640328266,4.31959,1798.2,1798.0,2.5135]
[1745640328473,4.31959,1798.2,1798.1,1.6635]
[1745640328882,5.95689,1798.2,1798.1,1.6635]
[1745640330472,1.11181,1798.1,1798.0,0.8653]
[1745640330677,2.83411,1798.1,1798.0,0.8653]
[1745640330877,4.3196,1798.2,1798.0,0.8653]
[1745640331078,4.3196,1798.2,1798.1,1.7514]
[1745640331381,1.94033,1798.3,1798.1,1.7514]
[1745640332282,0.8286,1798.3,1798.1,2.86319]
[1745640332577,2.83395,1798.4,1798.1,1.7514]
[1745640332778,2.83395,1798.4,1798.2,2.4671]